[Event "Tournoi de MI Clichy 92 2022"]
[Site "Clichy, France"]
[Date "2022.02.22"]
[Round "4.3"]
[White "Degardin, Sylvain"]
[Black "Valles Moreno, Ivan"]
[Result "1-0"]
[TimeControl "1H40 40 moves plus 30 minutes + 30 seconds from move one"]
[WhiteElo "2288"]
[BlackElo "2393"]

1. e4 {[%clk 01:23:19]} {[%emt 00:07:39]} c5 {[%clk 01:28:59]} {[%emt
00:02:02]} 2. Nf3 {[%clk 01:23:25]} {[%emt 00:00:24]} d6 {[%clk 01:29:21]}
{[%emt 00:00:07]} 3. Bb5+ {[%clk 01:23:29]} {[%emt 00:00:27]} Bd7 {[%clk
01:29:36]} {[%emt 00:00:14]} 4. Bxd7+ {[%clk 01:23:36]} {[%emt 00:00:24]} Nxd7
{[%clk 01:29:57]} {[%emt 00:00:08]} 5. O-O {[%clk 01:22:50]} {[%emt 00:01:16]}
Ngf6 {[%clk 01:30:10]} {[%emt 00:00:16]} 6. Qe2 {[%clk 01:22:36]} {[%emt
00:00:46]} e6 {[%clk 01:25:40]} {[%emt 00:04:59]} 7. c4 {[%clk 01:21:42]}
{[%emt 00:01:24]} a6 {[%clk 01:22:14]} {[%emt 00:03:56]} 8. Nc3 {[%clk
01:18:07]} {[%emt 00:04:05]} Rc8 {[%clk 01:17:48]} {[%emt 00:04:56]} 9. b3
{[%clk 01:17:25]} {[%emt 00:01:12]} Be7 {[%clk 01:10:53]} {[%emt 00:07:24]} 10.
Bb2 {[%clk 01:17:02]} {[%emt 00:00:54]} Qa5 {[%clk 01:06:20]} {[%emt 00:05:02]}
11. d4 {[%clk 01:10:00]} {[%emt 00:07:33]} cxd4 {[%clk 01:05:56]} {[%emt
00:00:54]} 12. Nxd4 {[%clk 01:10:14]} {[%emt 00:00:16]} Qh5 {[%clk 01:06:12]}
{[%emt 00:00:12]} 13. Qxh5 {[%clk 01:04:22]} {[%emt 00:06:24]} Nxh5 {[%clk
01:06:35]} {[%emt 00:00:07]} 14. Rad1 {[%clk 01:02:21]} {[%emt 00:02:32]} Nhf6
{[%clk 00:54:06]} {[%emt 00:12:58]} 15. Nde2 {[%clk 00:56:25]} {[%emt
00:06:26]} Nc5 {[%clk 00:46:22]} {[%emt 00:08:14]} 16. f3 {[%clk 00:56:15]}
{[%emt 00:00:40]} h5 {[%clk 00:42:59]} {[%emt 00:03:53]} 17. Bc1 {[%clk
00:53:20]} {[%emt 00:03:27]} b6 {[%clk 00:33:59]} {[%emt 00:09:29]} 18. Bf4
{[%clk 00:51:16]} {[%emt 00:02:34]} Nb7 {[%clk 00:34:20]} {[%emt 00:00:08]} 19.
Rd2 {[%clk 00:47:09]} {[%emt 00:04:38]} Nd7 {[%clk 00:31:19]} {[%emt 00:03:31]}
20. Rfd1 {[%clk 00:45:04]} {[%emt 00:02:35]} g5 {[%clk 00:28:11]} {[%emt
00:03:37]} 21. Be3 {[%clk 00:44:37]} {[%emt 00:00:58]} Nbc5 {[%clk 00:22:04]}
{[%emt 00:06:38]} 22. Nc1 {[%clk 00:39:44]} {[%emt 00:05:22]} g4 {[%clk
00:14:28]} {[%emt 00:08:05]} 23. Bf4 {[%clk 00:32:14]} {[%emt 00:08:01]} gxf3
{[%clk 00:08:23]} {[%emt 00:06:35]} 24. gxf3 {[%clk 00:31:47]} {[%emt
00:00:57]} Ne5 {[%clk 00:08:34]} {[%emt 00:00:18]} 25. Kf2 {[%clk 00:25:54]}
{[%emt 00:06:24]} Rg8 {[%clk 00:07:09]} {[%emt 00:01:55]} 26. N1e2 {[%clk
00:22:09]} {[%emt 00:04:15]} Nb7 {[%clk 00:05:58]} {[%emt 00:01:42]} 27. Bg3
{[%clk 00:11:24]} {[%emt 00:11:16]} h4 {[%clk 00:04:43]} {[%emt 00:01:44]} 28.
Bf4 {[%clk 00:11:01]} {[%emt 00:00:52]} h3 {[%clk 00:04:45]} {[%emt 00:00:28]}
29. Bg3 {[%clk 00:10:28]} {[%emt 00:01:05]} Bd8 {[%clk 00:02:30]} {[%emt
00:02:45]} 30. f4 {[%clk 00:09:37]} {[%emt 00:01:20]} Ng4+ {[%clk 00:02:06]}
{[%emt 00:00:54]} 31. Kf3 {[%clk 00:09:58]} {[%emt 00:00:09]} Be7 {[%clk
00:01:49]} {[%emt 00:00:48]} 32. Na4 {[%clk 00:07:19]} {[%emt 00:03:09]} b5
{[%clk 00:01:53]} {[%emt 00:00:26]} 33. cxb5 {[%clk 00:07:26]} {[%emt
00:00:24]} axb5 {[%clk 00:02:18]} {[%emt 00:00:04]} 34. Nac3 {[%clk 00:07:38]}
{[%emt 00:00:17]} b4 {[%clk 00:02:24]} {[%emt 00:00:24]} 35. Na4 {[%clk
00:07:40]} {[%emt 00:00:29]} e5 {[%clk 00:01:15]} {[%emt 00:01:39]} 36. Nb6
{[%clk 00:07:19]} {[%emt 00:00:51]} Rc6 {[%clk 00:01:18]} {[%emt 00:00:27]} 37.
Nc4 {[%clk 00:06:00]} {[%emt 00:01:49]} f6 {[%clk 00:01:03]} {[%emt 00:00:45]}
38. f5 {[%clk 00:05:06]} {[%emt 00:01:24]} Nh6 {[%clk 00:00:49]} {[%emt
00:00:44]} 39. Ng1 {[%clk 00:02:04]} {[%emt 00:03:31]} Nf7 {[%clk 00:01:13]}
{[%emt 00:00:06]} 40. Nxh3 {[%clk 00:02:09]} {[%emt 00:00:26]} Ra6 {[%clk
00:01:03]} {[%emt 00:00:41]} 41. Ne3 {[%clk 00:25:24]} {[%emt 00:07:14]} Rh8
{[%clk 00:23:01]} {[%emt 00:08:31]} 42. Nf2 {[%clk 00:23:26]} {[%emt 00:02:27]}
Ng5+ {[%clk 00:23:24]} {[%emt 00:00:08]} 43. Ke2 {[%clk 00:22:54]} {[%emt
00:01:02]} Nc5 {[%clk 00:23:48]} {[%emt 00:00:07]} 44. Nd5 {[%clk 00:23:02]}
{[%emt 00:00:22]} Ra3 {[%clk 00:18:15]} {[%emt 00:06:02]} 45. Ke3 {[%clk
00:22:05]} {[%emt 00:01:28]} Bd8 {[%clk 00:12:52]} {[%emt 00:05:52]} 46. h4
{[%clk 00:20:23]} {[%emt 00:02:12]} Nf7 {[%clk 00:12:06]} {[%emt 00:01:16]} 47.
Ng4 {[%clk 00:19:40]} {[%emt 00:01:14]} Kf8 {[%clk 00:10:26]} {[%emt 00:02:11]}
48. Kf3 {[%clk 00:15:21]} {[%emt 00:04:49]} Rg8 {[%clk 00:03:53]} {[%emt
00:07:02]} 49. Ngxf6 {[%clk 00:14:39]} {[%emt 00:01:12]} Bxf6 {[%clk 00:04:14]}
{[%emt 00:00:09]} 50. Nxf6 {[%clk 00:14:51]} {[%emt 00:00:18]} Rxg3+ {[%clk
00:04:07]} {[%emt 00:00:37]} 51. Kxg3 {[%clk 00:15:11]} {[%emt 00:00:10]} Kg7
{[%clk 00:04:34]} {[%emt 00:00:03]} 52. Ne8+ {[%clk 00:09:21]} {[%emt
00:06:20]} Kf8 {[%clk 00:04:59]} {[%emt 00:00:05]} 53. Nxd6 {[%clk 00:08:50]}
{[%emt 00:01:01]} Nxd6 {[%clk 00:05:23]} {[%emt 00:00:06]} 54. Rxd6 {[%clk
00:09:14]} {[%emt 00:00:06]} Nxe4+ {[%clk 00:05:48]} {[%emt 00:00:04]} 55. Kf3
{[%clk 00:07:47]} {[%emt 00:01:55]} Nxd6 {[%clk 00:06:10]} {[%emt 00:00:11]} 56.
Rxd6 {[%clk 00:08:13]} {[%emt 00:00:04]} Rxa2 {[%clk 00:06:34]} {[%emt
00:00:06]} 57. Rb6 {[%clk 00:08:16]} {[%emt 00:00:26]} Kf7 {[%clk 00:05:03]}
{[%emt 00:02:02]} 58. Ke4 {[%clk 00:06:00]} {[%emt 00:02:47]} Re2+ {[%clk
00:05:08]} {[%emt 00:00:25]} 59. Kd5 {[%clk 00:05:42]} {[%emt 00:00:48]} Re3
{[%clk 00:05:29]} {[%emt 00:00:09]} 60. h5 {[%clk 00:03:46]} {[%emt 00:02:26]}
Rxb3 {[%clk 00:03:07]} {[%emt 00:02:51]} 61. Kxe5 {[%clk 00:04:09]} {[%emt
00:00:08]} Re3+ {[%clk 00:01:31]} {[%emt 00:02:06]} 62. Kf4 {[%clk 00:04:04]}
{[%emt 00:00:34]} Re1 {[%clk 00:00:34]} {[%emt 00:01:29]} 63. Rxb4 {[%clk
00:03:39]} {[%emt 00:00:54]} Kf6 {[%clk 00:00:57]} {[%emt 00:00:08]} 64. Rb6+
{[%clk 00:03:41]} {[%emt 00:00:29]} Kf7 {[%clk 00:01:19]} {[%emt 00:00:07]} 65.
h6 {[%clk 00:01:30]} {[%emt 00:02:42]} Rf1+ {[%clk 00:01:48]} {[%emt 00:00:02]}
66. Kg4 {[%clk 00:01:26]} {[%emt 00:00:33]} Rg1+ {[%clk 00:02:17]} {[%emt
00:00:01]} 67. Kf3 {[%clk 00:01:00]} {[%emt 00:00:56]} Rf1+ {[%clk 00:02:33]}
{[%emt 00:00:15]} 68. Ke4 {[%clk 00:01:25]} {[%emt 00:00:04]} Re1+ {[%clk
00:02:57]} {[%emt 00:00:06]} 69. Kd3 {[%clk 00:01:43]} {[%emt 00:00:12]} Re5
{[%clk 00:02:03]} {[%emt 00:01:24]} 70. Rb8 {[%emt 00:02:13]} 1-0

[Event "Tournoi de MI Clichy 92 2022"]
[Site "Clichy, France"]
[Date "2022.02.22"]
[Round "4.2"]
[White "Sorbe, Stephane"]
[Black "Mekhane, Adam"]
[Result "1/2-1/2"]
[TimeControl "1H40 40 moves plus 30 minutes + 30 seconds from move one"]
[WhiteElo "2326"]
[BlackElo "2316"]

1. d4 {[%clk 01:30:57]} {[%emt 00:00:02]} Nf6 {[%clk 01:30:54]} {[%emt
00:00:06]} 2. Nf3 {[%clk 01:31:19]} {[%emt 00:00:10]} e6 {[%clk 01:31:18]}
{[%emt 00:00:07]} 3. Bg5 {[%clk 01:31:16]} {[%emt 00:00:31]} h6 {[%clk
01:31:38]} {[%emt 00:00:10]} 4. Bh4 {[%clk 01:31:31]} {[%emt 00:00:16]} c5
{[%clk 01:31:51]} {[%emt 00:00:17]} 5. e3 {[%clk 01:31:23]} {[%emt 00:00:37]}
cxd4 {[%clk 01:32:15]} {[%emt 00:00:06]} 6. exd4 {[%clk 01:29:50]} {[%emt
00:02:04]} Qb6 {[%clk 01:32:38]} {[%emt 00:00:06]} 7. Qc1 {[%clk 01:24:44]}
{[%emt 00:05:36]} g5 {[%clk 01:31:05]} {[%emt 00:02:03]} 8. Bg3 {[%clk
01:24:37]} {[%emt 00:00:37]} Nc6 {[%clk 01:30:57]} {[%emt 00:00:38]} 9. c3
{[%clk 01:24:06]} {[%emt 00:01:01]} Nh5 {[%clk 01:27:51]} {[%emt 00:03:36]} 10.
Nbd2 {[%clk 01:22:23]} {[%emt 00:02:13]} d5 {[%clk 01:25:15]} {[%emt 00:03:06]}
11. Be2 {[%clk 01:13:24]} {[%emt 00:09:29]} Nxg3 {[%clk 01:04:19]} {[%emt
00:21:26]} 12. hxg3 {[%clk 01:13:44]} {[%emt 00:00:10]} Bg7 {[%clk 01:04:46]}
{[%emt 00:00:03]} 13. Nb3 {[%clk 01:12:13]} {[%emt 00:02:02]} Qc7 {[%clk
00:52:57]} {[%emt 00:12:19]} 14. Qe3 {[%clk 01:09:07]} {[%emt 00:03:36]} b6
{[%clk 00:48:34]} {[%emt 00:04:54]} 15. Nc1 {[%clk 01:02:02]} {[%emt 00:07:35]}
Bb7 {[%clk 00:44:05]} {[%emt 00:04:59]} 16. Nd3 {[%clk 00:58:39]} {[%emt
00:03:53]} O-O-O {[%clk 00:43:27]} {[%emt 00:01:08]} 17. O-O {[%clk 00:52:56]}
{[%emt 00:06:12]} Kb8 {[%clk 00:41:40]} {[%emt 00:02:17]} 18. Rfd1 {[%clk
00:45:11]} {[%emt 00:08:14]} f6 {[%clk 00:34:20]} {[%emt 00:07:50]} 19. Nb4
{[%clk 00:41:37]} {[%emt 00:04:04]} Nxb4 {[%clk 00:27:39]} {[%emt 00:07:11]} 20.
cxb4 {[%clk 00:42:02]} {[%emt 00:00:05]} e5 {[%clk 00:28:02]} {[%emt 00:00:07]}
21. a4 {[%clk 00:36:57]} {[%emt 00:05:34]} e4 {[%clk 00:23:02]} {[%emt
00:05:30]} 22. Nh2 {[%clk 00:35:08]} {[%emt 00:02:19]} f5 {[%clk 00:22:01]}
{[%emt 00:01:32]} 23. a5 {[%clk 00:35:23]} {[%emt 00:00:15]} Rhf8 {[%clk
00:20:59]} {[%emt 00:01:32]} 24. Rdc1 {[%clk 00:23:24]} {[%emt 00:12:29]} Qd6
{[%clk 00:21:06]} {[%emt 00:00:22]} 25. axb6 {[%clk 00:23:48]} {[%emt
00:00:06]} Qxb6 {[%clk 00:21:07]} {[%emt 00:00:30]} 26. Rc5 {[%clk 00:24:10]}
{[%emt 00:00:08]} f4 {[%clk 00:13:21]} {[%emt 00:08:16]} 27. Qc3 {[%clk
00:17:26]} {[%emt 00:07:14]} Rf7 {[%clk 00:07:19]} {[%emt 00:06:33]} 28. Nf1
{[%clk 00:12:08]} {[%emt 00:05:48]} Rdf8 {[%clk 00:05:01]} {[%emt 00:02:48]} 29.
Bh5 {[%clk 00:10:34]} {[%emt 00:02:04]} Re7 {[%clk 00:04:23]} {[%emt 00:01:08]}
30. b5 {[%clk 00:04:10]} {[%emt 00:06:53]} Rc7 {[%clk 00:03:21]} {[%emt
00:01:32]} 31. b4 {[%clk 00:03:56]} {[%emt 00:00:44]} Rxc5 {[%clk 00:02:59]}
{[%emt 00:00:52]} 32. bxc5 {[%clk 00:04:22]} {[%emt 00:00:04]} Qxb5 {[%clk
00:03:25]} {[%emt 00:00:04]} 33. Nd2 {[%clk 00:03:12]} {[%emt 00:01:40]} Rc8
{[%clk 00:02:29]} {[%emt 00:01:26]} 34. Rb1 {[%clk 00:03:04]} {[%emt 00:00:37]}
Qa4 {[%clk 00:02:09]} {[%emt 00:00:50]} 35. Rb4 {[%clk 00:02:48]} {[%emt
00:00:46]} Qa6 {[%clk 00:02:17]} {[%emt 00:00:22]} 36. Bf7 {[%clk 00:01:27]}
{[%emt 00:01:50]} Ka8 {[%clk 00:02:20]} {[%emt 00:00:28]} 37. Qb3 {[%clk
00:01:36]} {[%emt 00:00:21]} Rd8 {[%clk 00:02:20]} {[%emt 00:00:29]} 38. Nb1
{[%emt 00:01:15]} fxg3 {[%clk 00:01:23]} {[%emt 00:01:26]} 39. Qxg3 {[%clk
00:00:48]} {[%emt 00:00:35]} Qa5 {[%clk 00:00:40]} {[%emt 00:01:12]} 40. Qb3
{[%clk 00:00:45]} {[%emt 00:00:32]} Qc7 {[%clk 00:00:32]} {[%emt 00:00:39]} 41.
Bh5 {[%clk 00:27:17]} {[%emt 00:03:58]} Bc6 {[%clk 00:25:10]} {[%emt 00:05:52]}
42. Nc3 {[%clk 00:25:37]} {[%emt 00:02:11]} Qf4 {[%emt 00:14:51]} 43. g3 {[%clk
00:17:39]} {[%emt 00:03:43]} Qd2 {[%clk 00:10:53]} {[%emt 00:05:10]} 44. Nxd5
{[%clk 00:03:47]} {[%emt 00:14:22]} Qe1+ {[%clk 00:06:48]} {[%emt 00:04:35]} 45.
Kg2 {[%clk 00:04:06]} {[%emt 00:00:11]} e3 {[%clk 00:06:42]} {[%emt 00:00:36]}
46. f3 {[%clk 00:01:17]} {[%emt 00:03:20]} Qf2+ {[%clk 00:06:24]} {[%emt
00:00:48]} 47. Kh3 {[%clk 00:01:33]} {[%emt 00:00:13]} Qf1+ {[%clk 00:06:14]}
{[%emt 00:00:41]} 48. Kh2 {[%clk 00:01:56]} {[%emt 00:00:06]} Qf2+ {[%clk
00:02:25]} {[%emt 00:04:19]} 49. Kh3 {[%clk 00:02:08]} {[%emt 00:00:18]} Qf1+
{[%clk 00:01:13]} {[%emt 00:01:42]} 50. Kh2 {[%clk 00:02:35]} {[%emt 00:00:04]}
Qf2+ {[%clk 00:00:34]} {[%emt 00:01:10]} 51. Kh3 {[%clk 00:03:01]} {[%emt
00:00:04]} Qf1+ {[%clk 00:00:48]} {[%emt 00:00:16]} 52. Kh2 {[%clk 00:03:20]}
{[%emt 00:01:46]} 1/2-1/2

[Event "Tournoi de MI Clichy 92 2022"]
[Site "Clichy, France"]
[Date "2022.02.22"]
[Round "4.4"]
[White "Decuigniere, Tom"]
[Black "Droin, Augustin"]
[Result "1/2-1/2"]
[TimeControl "1H40 40 moves plus 30 minutes + 30 seconds from move one"]
[WhiteElo "2292"]
[BlackElo "2365"]

1. d4 {[%clk 01:30:57]} {[%emt 00:00:02]} Nf6 {[%clk 01:30:57]} {[%emt
00:00:04]} 2. c4 {[%clk 01:31:12]} {[%emt 00:00:16]} e6 {[%clk 01:31:23]}
{[%emt 00:00:04]} 3. Nc3 {[%clk 01:31:10]} {[%emt 00:00:32]} Bb4 {[%clk
01:31:49]} {[%emt 00:00:05]} 4. f3 {[%clk 01:31:24]} {[%emt 00:00:16]} O-O
{[%clk 01:31:36]} {[%emt 00:00:43]} 5. a3 {[%clk 01:29:43]} {[%emt 00:02:11]}
Bxc3+ {[%clk 01:31:48]} {[%emt 00:00:17]} 6. bxc3 {[%clk 01:30:07]} {[%emt
00:00:05]} Nh5 {[%clk 01:32:15]} {[%emt 00:00:03]} 7. Nh3 {[%clk 01:29:03]}
{[%emt 00:01:35]} f5 {[%clk 01:32:41]} {[%emt 00:00:05]} 8. e3 {[%clk
01:25:15]} {[%emt 00:04:18]} d6 {[%clk 01:31:31]} {[%emt 00:01:40]} 9. Bd3
{[%clk 01:22:45]} {[%emt 00:03:00]} c5 {[%clk 01:31:29]} {[%emt 00:00:32]} 10.
O-O {[%clk 01:21:49]} {[%emt 00:01:25]} Nc6 {[%clk 01:28:31]} {[%emt 00:03:28]}
11. Bd2 {[%clk 01:04:43]} {[%emt 00:17:36]} e5 {[%clk 01:22:15]} {[%emt
00:06:46]} 12. f4 {[%clk 01:00:46]} {[%emt 00:04:26]} Nf6 {[%clk 01:14:45]}
{[%emt 00:08:01]} 13. d5 {[%clk 00:53:40]} {[%emt 00:07:36]} Na5 {[%clk
01:13:52]} {[%emt 00:01:23]} 14. fxe5 {[%clk 00:35:29]} {[%emt 00:18:41]} dxe5
{[%clk 01:14:16]} {[%emt 00:00:06]} 15. Be1 {[%clk 00:35:57]} {[%emt 00:00:01]}
Ng4 {[%clk 00:59:30]} {[%emt 00:15:16]} 16. Qe2 {[%clk 00:36:15]} {[%emt
00:00:11]} e4 {[%clk 00:59:48]} {[%emt 00:00:13]} 17. Bc2 {[%clk 00:36:13]}
{[%emt 00:00:32]} b6 {[%clk 00:59:28]} {[%emt 00:00:50]} 18. Bg3 {[%clk
00:33:24]} {[%emt 00:03:18]} Ba6 {[%clk 00:57:50]} {[%emt 00:02:09]} 19. Rxf5
{[%clk 00:31:55]} {[%emt 00:01:59]} Rxf5 {[%clk 00:48:18]} {[%emt 00:10:02]} 20.
Qxg4 {[%clk 00:32:20]} {[%emt 00:00:05]} Qd7 {[%clk 00:45:36]} {[%emt
00:03:12]} 21. Qxe4 {[%clk 00:29:14]} {[%emt 00:03:35]} Raf8 {[%clk 00:43:16]}
{[%emt 00:02:50]} 22. Bd3 {[%clk 00:26:47]} {[%emt 00:02:57]} Bxc4 {[%clk
00:37:42]} {[%emt 00:06:05]} 23. Bxc4 {[%clk 00:26:47]} {[%emt 00:00:30]} Nxc4
{[%clk 00:38:04]} {[%emt 00:00:09]} 24. Qxc4 {[%clk 00:27:11]} {[%emt
00:00:05]} b5 {[%clk 00:36:44]} {[%emt 00:01:50]} 25. Qe2 {[%clk 00:18:49]}
{[%emt 00:08:51]} Rxd5 {[%clk 00:36:51]} {[%emt 00:00:24]} 26. Nf2 {[%clk
00:17:59]} {[%emt 00:01:20]} Rd2 {[%clk 00:34:26]} {[%emt 00:02:55]} 27. Qe1
{[%clk 00:15:48]} {[%emt 00:02:41]} c4 {[%clk 00:26:30]} {[%emt 00:08:27]} 28.
e4 {[%clk 00:15:59]} {[%emt 00:00:18]} Rd8 {[%clk 00:23:30]} {[%emt 00:03:31]}
29. e5 {[%clk 00:15:47]} {[%emt 00:00:42]} Qe6 {[%clk 00:23:55]} {[%emt
00:00:05]} 30. Ne4 {[%clk 00:13:16]} {[%emt 00:03:01]} Rb2 {[%clk 00:21:32]}
{[%emt 00:02:53]} 31. Rd1 {[%clk 00:10:46]} {[%emt 00:03:00]} Rd3 {[%clk
00:21:21]} {[%emt 00:00:42]} 32. Nf2 {[%clk 00:08:27]} {[%emt 00:02:48]} Qd5
{[%clk 00:21:07]} {[%emt 00:00:44]} 33. Rb1 {[%clk 00:08:49]} {[%emt 00:00:08]}
Rxb1 {[%clk 00:20:33]} {[%emt 00:01:04]} 34. Qxb1 {[%clk 00:09:16]} {[%emt
00:00:03]} Rxc3 {[%clk 00:20:44]} {[%emt 00:00:19]} 35. Qe1 {[%clk 00:08:25]}
{[%emt 00:01:20]} Qd4 {[%clk 00:20:26]} {[%emt 00:00:48]} 36. Bf4 {[%clk
00:06:52]} {[%emt 00:02:03]} Rc2 {[%clk 00:15:54]} {[%emt 00:05:02]} 37. g3
{[%clk 00:06:19]} {[%emt 00:01:03]} Ra2 {[%clk 00:12:16]} {[%emt 00:04:08]} 38.
e6 {[%clk 00:05:40]} {[%emt 00:01:09]} Ra1 {[%clk 00:12:01]} {[%emt 00:00:46]}
39. Bc1 {[%clk 00:06:06]} {[%emt 00:00:03]} Kf8 {[%clk 00:12:26]} {[%emt
00:00:05]} 40. Qb4+ {[%clk 00:04:27]} {[%emt 00:02:08]} Kg8 {[%clk 00:12:46]}
{[%emt 00:00:11]} 41. Qe1 {[%clk 00:02:48]} {[%emt 00:02:09]} Kf8 {[%clk
00:12:15]} {[%emt 00:01:01]} 42. Qb4+ {[%clk 00:03:07]} {[%emt 00:00:11]} Kg8
{[%clk 00:12:16]} {[%emt 00:00:29]} 43. Qe1 {[%clk 00:03:29]} {[%emt 00:00:08]}
1/2-1/2

[Event "Tournoi de MI Clichy 92 2022"]
[Site "Clichy, France"]
[Date "2022.02.22"]
[Round "4.1"]
[White "Onkoud, Abdelaziz"]
[Black "Benmesbah, Natacha"]
[Result "0-1"]
[TimeControl "1H40 40 moves plus 30 minutes + 30 seconds from move one"]
[WhiteElo "2317"]
[BlackElo "2221"]

1. Nf3 {[%clk 01:27:44]} {[%emt 00:03:13]} c5 {[%clk 01:30:44]} {[%emt
00:00:18]} 2. b3 {[%clk 01:26:38]} {[%emt 00:01:35]} Nc6 {[%clk 01:28:50]}
{[%emt 00:02:24]} 3. Bb2 {[%clk 01:26:48]} {[%emt 00:00:20]} d6 {[%clk
01:27:36]} {[%emt 00:01:44]} 4. e3 {[%clk 01:20:27]} {[%emt 00:06:50]} e5
{[%clk 01:23:46]} {[%emt 00:04:21]} 5. d3 {[%clk 01:11:48]} {[%emt 00:09:08]}
Be7 {[%clk 01:16:25]} {[%emt 00:07:51]} 6. c4 {[%clk 01:11:35]} f5 {[%clk
01:16:25]} 7. Nc3 {[%clk 01:11:35]} Nf6 {[%clk 01:16:25]} 8. a3 {[%clk
01:09:27]} {[%emt 00:11:49]} O-O {[%clk 01:07:19]} {[%emt 00:02:39]} 9. Qc2
{[%clk 01:07:46]} {[%emt 00:02:10]} Kh8 {[%clk 01:06:20]} {[%emt 00:01:30]} 10.
Be2 {[%clk 00:59:24]} {[%emt 00:08:51]} Qe8 {[%clk 00:49:10]} {[%emt 00:17:41]}
11. O-O-O {[%clk 00:54:20]} {[%emt 00:05:32]} a6 {[%clk 00:47:23]} {[%emt
00:02:18]} 12. h3 {[%clk 00:44:56]} {[%emt 00:09:53]} b5 {[%clk 00:45:11]}
{[%emt 00:02:43]} 13. Nd5 {[%clk 00:42:51]} {[%emt 00:02:35]} Nxd5 {[%clk
00:40:55]} {[%emt 00:04:47]} 14. cxd5 {[%clk 00:43:12]} {[%emt 00:00:08]} Na5
{[%clk 00:39:41]} {[%emt 00:01:45]} 15. Nd2 {[%clk 00:35:58]} {[%emt 00:07:43]}
Bb7 {[%clk 00:31:18]} {[%emt 00:08:55]} 16. Bf3 {[%clk 00:34:40]} {[%emt
00:01:47]} Rc8 {[%clk 00:25:44]} {[%emt 00:06:04]} 17. Kb1 {[%clk 00:34:32]}
{[%emt 00:00:37]} Qf7 {[%clk 00:23:21]} {[%emt 00:02:53]} 18. g4 {[%clk
00:29:51]} {[%emt 00:05:10]} Bxd5 {[%clk 00:21:08]} {[%emt 00:02:46]} 19. Bxd5
{[%clk 00:29:00]} {[%emt 00:01:19]} Qxd5 {[%clk 00:21:36]} {[%emt 00:00:03]} 20.
gxf5 {[%clk 00:29:20]} {[%emt 00:00:10]} Qf7 {[%clk 00:20:43]} {[%emt
00:01:23]} 21. Qc3 {[%clk 00:27:17]} {[%emt 00:02:32]} Nc6 {[%clk 00:19:54]}
{[%emt 00:01:20]} 22. Rdg1 {[%clk 00:23:39]} {[%emt 00:04:07]} d5 {[%clk
00:18:49]} {[%emt 00:01:36]} 23. Rg2 {[%clk 00:22:37]} {[%emt 00:01:31]} d4
{[%clk 00:13:04]} {[%emt 00:06:16]} 24. Qc2 {[%clk 00:22:34]} {[%emt 00:00:32]}
Na5 {[%clk 00:12:10]} {[%emt 00:01:25]} 25. Rhg1 {[%clk 00:20:39]} {[%emt
00:02:24]} Bf6 {[%clk 00:12:22]} {[%emt 00:00:19]} 26. Rc1 {[%clk 00:20:52]}
{[%emt 00:00:16]} Rc7 {[%clk 00:09:10]} {[%emt 00:03:44]} 27. b4 {[%clk
00:15:47]} {[%emt 00:05:35]} Nb7 {[%clk 00:09:36]} {[%emt 00:00:04]} 28. Qb3
{[%clk 00:15:20]} {[%emt 00:00:57]} Qd7 {[%clk 00:07:23]} {[%emt 00:02:44]} 29.
e4 {[%clk 00:12:43]} {[%emt 00:03:06]} Rfc8 {[%clk 00:06:29]} {[%emt 00:01:24]}
30. Rgg1 {[%clk 00:11:47]} {[%emt 00:01:25]} a5 {[%clk 00:04:41]} {[%emt
00:02:19]} 31. Rc2 {[%clk 00:09:21]} {[%emt 00:02:56]} h6 {[%clk 00:02:50]}
{[%emt 00:02:22]} 32. f4 {[%clk 00:09:08]} {[%emt 00:00:42]} exf4 {[%clk
00:02:49]} {[%emt 00:00:31]} 33. Rgc1 {[%clk 00:09:26]} {[%emt 00:00:11]} axb4
{[%clk 00:01:11]} {[%emt 00:02:10]} 34. axb4 {[%clk 00:09:31]} c4 {[%clk
00:01:11]} 35. dxc4 {[%clk 00:07:26]} {[%emt 00:03:20]} d3 {[%clk 00:01:47]}
{[%emt 00:00:04]} 36. Rc3 {[%clk 00:07:18]} {[%emt 00:00:37]} Bxc3 {[%clk
00:01:30]} {[%emt 00:00:47]} 37. Qxc3 {[%clk 00:07:43]} {[%emt 00:00:05]} bxc4
{[%clk 00:01:17]} {[%emt 00:00:44]} 38. f6 {[%clk 00:06:50]} {[%emt 00:01:22]}
Nd6 {[%clk 00:00:48]} {[%emt 00:00:59]} 39. Rg1 {[%clk 00:04:35]} {[%emt
00:02:44]} Nb5 {[%clk 00:00:40]} {[%emt 00:00:39]} 40. fxg7+ {[%clk 00:04:52]}
{[%emt 00:00:13]} Kg8 {[%clk 00:01:04]} {[%emt 00:00:06]} 41. Qf6 {[%clk
00:04:06]} {[%emt 00:01:16]} Qd6 {[%clk 00:26:40]} {[%emt 00:04:55]} 42. Qf5
{[%clk 00:31:27]} {[%emt 00:03:09]} c3 {[%clk 00:26:02]} {[%emt 00:01:08]} 43.
e5 {[%clk 00:31:46]} {[%emt 00:00:11]} cxb2 {[%clk 00:18:55]} {[%emt 00:07:37]}
44. exd6 {[%clk 00:24:18]} {[%emt 00:07:57]} Rc1+ {[%clk 00:19:21]} {[%emt
00:00:04]} 45. Kxb2 {[%clk 00:24:21]} {[%emt 00:00:28]} R1c2+ {[%clk 00:19:28]}
{[%emt 00:00:23]} 0-1